[Event "Campeonato de España Universitario Relámpago"]
[Site "Zaragoza, Spain"]
[Date "2024.04.24"]
[Round "8.5"]
[White "Garcia Jimenez, Santiago"]
[Black "Galiana Fernandez, Adrian"]
[Result "0-1"]
[TimeControl "3 min + 2 sg"]
[WhiteFideId "24543241"]
[BlackFideId "32010150"]
[WhiteElo "2053"]
[BlackElo "2274"]

1. c4 {[%clk 00:03:03]} e6 {[%clk 00:03:02]} {[%emt 00:00:02]} 2. Nc3 {[%clk
00:03:00]} {[%emt 00:00:05]} d5 {[%clk 00:03:03]} {[%emt 00:00:01]} 3. e3
{[%clk 00:03:01]} {[%emt 00:00:01]} Nf6 {[%clk 00:03:03]} {[%emt 00:00:01]} 4.
Nf3 {[%clk 00:03:02]} {[%emt 00:00:01]} Bd6 {[%clk 00:03:03]} {[%emt 00:00:03]}
5. b3 {[%clk 00:03:01]} {[%emt 00:00:03]} O-O {[%clk 00:02:58]} {[%emt
00:00:06]} 6. Bb2 {[%clk 00:03:01]} {[%emt 00:00:02]} b6 {[%clk 00:02:56]}
{[%emt 00:00:05]} 7. cxd5 {[%clk 00:03:00]} {[%emt 00:00:03]} exd5 {[%clk
00:02:56]} {[%emt 00:00:01]} 8. g3 {[%clk 00:03:01]} c5 {[%clk 00:02:29]}
{[%emt 00:00:30]} 9. Bg2 {[%clk 00:02:47]} {[%emt 00:05:46]} Nc6 {[%clk
00:02:25]} 10. O-O {[%clk 00:02:42]} Bg4 {[%clk 00:02:25]} 11. h3 {[%clk
00:02:37]} Bh5 {[%clk 00:02:26]} 12. Ne2 {[%clk 00:02:33]} Rc8 {[%clk
00:02:20]} 13. d4 {[%clk 00:02:26]} Qe7 {[%clk 00:02:12]} 14. Rc1 {[%clk
00:02:19]} Rfd8 {[%clk 00:02:12]} 15. Re1 {[%clk 00:02:15]} Ne4 {[%clk
00:02:07]} 16. dxc5 bxc5 {[%clk 00:01:59]} 17. Nf4 {[%clk 00:01:02]} Bxf4 18.
gxf4 {[%clk 00:00:54]} Qd7 {[%clk 00:01:32]} 19. Qe2 {[%clk 00:00:48]} Re8
{[%clk 00:01:28]} 20. Kh2 {[%clk 00:00:33]} d4 {[%clk 00:01:25]} 21. Qc2 {[%clk
00:00:23]} d3 {[%clk 00:01:19]} 22. Qc4 {[%clk 00:00:18]} d2 {[%clk 00:01:00]}
23. Red1 {[%clk 00:00:16]} dxc1=Q {[%clk 00:00:56]} 24. Rxd7 {[%clk 00:00:17]}
Qxb2 {[%clk 00:00:51]} 25. Ng5 Nxg5 {[%clk 00:00:48]} 0-1

[ePGN "0.1;DGT LiveChess/2.2.6"]

[Event "Campeonato de España Universitario Relámpago"]
[Site "Zaragoza, Spain"]
[Date "2024.04.24"]
[Round "9.1"]
[White "Vela Frago, Alberto"]
[Black "Quintin Navarro, Alberto"]
[Result "1/2-1/2"]
[TimeControl "3 min + 2 sg"]
[WhiteFideId "24531685"]
[BlackFideId "2292688"]
[WhiteElo "2203"]
[BlackElo "2289"]

1. e4 {[%clk 00:03:01]} {[%emt 00:00:02]} c6 {[%clk 00:03:01]} {[%emt
00:00:04]} 2. Nf3 {[%clk 00:02:58]} {[%emt 00:00:04]} d5 {[%clk 00:03:02]} 3.
d3 {[%clk 00:02:59]} dxe4 {[%clk 00:03:01]} {[%emt 00:00:05]} 4. dxe4 {[%clk
00:03:00]} Qxd1+ {[%clk 00:03:01]} {[%emt 00:00:02]} 5. Kxd1 {[%clk 00:03:01]}
{[%emt 00:00:01]} g6 {[%clk 00:03:03]} 6. c3 {[%clk 00:02:53]} {[%emt
00:00:10]} Bg7 {[%clk 00:03:01]} {[%emt 00:00:03]} 7. Kc2 {[%clk 00:02:50]}
{[%emt 00:00:05]} Nf6 {[%clk 00:02:59]} {[%emt 00:00:04]} 8. Bd3 {[%clk
00:02:49]} {[%emt 00:00:03]} Nbd7 {[%clk 00:02:58]} {[%emt 00:00:03]} 9. h3
{[%clk 00:02:19]} {[%emt 00:00:33]} Nc5 {[%clk 00:02:56]} {[%emt 00:00:04]} 10.
Re1 {[%clk 00:02:19]} {[%emt 00:00:02]} Nxd3 {[%clk 00:02:17]} {[%emt
00:00:41]} 11. Kxd3 {[%clk 00:02:20]} Be6 {[%clk 00:02:16]} {[%emt 00:00:03]}
12. Bf4 {[%clk 00:02:14]} {[%emt 00:00:07]} O-O-O+ {[%clk 00:02:08]} {[%emt
00:00:10]} 13. Kc2 {[%clk 00:02:16]} Nd7 {[%clk 00:01:39]} {[%emt 00:00:31]} 14.
Nbd2 {[%clk 00:02:13]} {[%emt 00:00:04]} Nc5 {[%clk 00:01:34]} {[%emt
00:00:08]} 15. Be5 {[%clk 00:02:08]} {[%emt 00:00:07]} Bxe5 {[%clk 00:01:26]}
{[%emt 00:00:10]} 16. Nxe5 {[%clk 00:02:09]} f6 {[%clk 00:01:26]} {[%emt
00:00:02]} 17. Nef3 {[%clk 00:02:08]} {[%emt 00:00:04]} Nd3 {[%clk 00:01:26]}
{[%emt 00:00:02]} 18. Rf1 {[%clk 00:02:09]} {[%emt 00:00:01]} Nf4 {[%clk
00:01:16]} {[%emt 00:00:12]} 19. h4 {[%clk 00:02:05]} {[%emt 00:00:05]} Nxg2
{[%clk 00:01:08]} {[%emt 00:00:10]} 20. Rg1 {[%clk 00:01:48]} {[%emt 00:00:19]}
Nf4 {[%clk 00:01:09]} {[%emt 00:00:02]} 21. Nd4 {[%clk 00:01:49]} Bd7 {[%clk
00:01:08]} {[%emt 00:00:03]} 22. Rae1 {[%clk 00:01:42]} {[%emt 00:00:09]} e5
{[%clk 00:01:08]} {[%emt 00:00:02]} 23. Ne2 {[%clk 00:01:42]} {[%emt 00:00:01]}
Nxe2 {[%clk 00:00:57]} {[%emt 00:00:13]} 24. Rxe2 {[%clk 00:01:44]} Be6 {[%clk
00:00:58]} {[%emt 00:00:02]} 25. f4 {[%clk 00:01:41]} {[%emt 00:00:04]} exf4
{[%clk 00:00:45]} {[%emt 00:00:15]} 26. Rf2 {[%clk 00:01:41]} {[%emt 00:00:02]}
f5 {[%clk 00:00:38]} {[%emt 00:00:09]} 27. Rxf4 {[%clk 00:01:35]} {[%emt
00:00:08]} fxe4 {[%clk 00:00:39]} {[%emt 00:00:02]} 28. Nxe4 {[%clk 00:01:29]}
{[%emt 00:00:08]} Bf5 {[%clk 00:00:38]} {[%emt 00:00:02]} 29. Kc1 {[%clk
00:01:29]} {[%emt 00:00:01]} Rhe8 {[%clk 00:00:31]} {[%emt 00:00:10]} 30. Ng3
{[%clk 00:01:27]} {[%emt 00:00:04]} Be6 {[%clk 00:00:32]} {[%emt 00:00:02]} 31.
b3 {[%clk 00:01:23]} {[%emt 00:00:05]} Rd3 {[%clk 00:00:25]} {[%emt 00:00:09]}
32. Ne2 {[%clk 00:01:05]} {[%emt 00:00:19]} Bxb3 {[%clk 00:00:20]} {[%emt
00:00:07]} 33. axb3 {[%clk 00:00:24]} {[%emt 00:00:43]} Rxe2 {[%clk 00:00:20]}
{[%emt 00:00:01]} 34. Rf7 {[%clk 00:00:22]} {[%emt 00:00:04]} Rd7 {[%clk
00:00:13]} {[%emt 00:00:09]} 35. Rf3 {[%clk 00:00:21]} {[%emt 00:00:03]} Re4
{[%clk 00:00:12]} {[%emt 00:00:04]} 36. Rh1 {[%clk 00:00:21]} {[%emt 00:00:01]}
Rde7 {[%clk 00:00:12]} {[%emt 00:00:02]} 37. h5 {[%clk 00:00:18]} {[%emt
00:00:05]} Re1+ {[%clk 00:00:11]} {[%emt 00:00:03]} 38. Rxe1 {[%clk 00:00:19]}
{[%emt 00:00:01]} Rxe1+ {[%clk 00:00:12]} {[%emt 00:00:01]} 39. Kd2 {[%clk
00:00:20]} Re7 {[%clk 00:00:08]} {[%emt 00:00:07]} 40. hxg6 {[%clk 00:00:21]}
{[%emt 00:00:02]} hxg6 {[%clk 00:00:09]} {[%emt 00:00:01]} 41. Rf8+ {[%clk
00:00:20]} {[%emt 00:00:02]} Kc7 {[%clk 00:00:10]} 42. Rg8 {[%clk 00:00:21]}
Re6 {[%clk 00:00:10]} {[%emt 00:00:04]} 43. c4 {[%clk 00:00:22]} {[%emt
00:00:01]} b6 {[%clk 00:00:07]} {[%emt 00:00:05]} 44. Rg7+ {[%clk 00:00:22]}
Kb8 {[%clk 00:00:07]} {[%emt 00:00:03]} 45. Kc3 {[%clk 00:00:23]} {[%emt
00:00:01]} Rf6 {[%clk 00:00:07]} {[%emt 00:00:02]} 46. Kd4 {[%clk 00:00:24]}
{[%emt 00:00:01]} Rf3 {[%clk 00:00:05]} {[%emt 00:00:04]} 47. b4 {[%clk
00:00:25]} {[%emt 00:00:01]} Rb3 {[%clk 00:00:06]} {[%emt 00:00:01]} 48. Rxg6
{[%clk 00:00:24]} {[%emt 00:00:02]} Kb7 {[%clk 00:00:07]} {[%emt 00:00:01]} 49.
Rg7+ {[%emt 00:00:02]} Ka6 {[%emt 00:00:01]} 50. Rc7 {[%clk 00:00:23]} {[%emt
00:00:02]} Rxb4 {[%clk 00:00:08]} {[%emt 00:00:03]} 51. Rxc6 {[%clk 00:00:24]}
{[%emt 00:00:01]} Rb1 {[%clk 00:00:08]} {[%emt 00:00:02]} 52. Rc7 {[%clk
00:00:23]} {[%emt 00:00:03]} Rd1+ {[%clk 00:00:09]} {[%emt 00:00:02]} 53. Kc3
{[%clk 00:00:24]} {[%emt 00:00:01]} Rh1 {[%clk 00:00:09]} {[%emt 00:00:01]} 54.
Rg7 {[%clk 00:00:22]} {[%emt 00:00:02]} Rh3+ {[%clk 00:00:10]} 55. Kb4 {[%clk
00:00:22]} {[%emt 00:00:04]} Rh5 {[%clk 00:00:11]} {[%emt 00:00:01]} 56. Rf7
{[%clk 00:00:23]} {[%emt 00:00:02]} Rc5 {[%clk 00:00:12]} {[%emt 00:00:01]} 57.
Rg7 {[%clk 00:00:23]} {[%emt 00:00:01]} Rc8 {[%clk 00:00:13]} 58. Rh7 {[%clk
00:00:24]} {[%emt 00:00:01]} Rb8 {[%clk 00:00:13]} {[%emt 00:00:02]} 59. Rg7
{[%clk 00:00:24]} {[%emt 00:00:01]} Rb7 {[%clk 00:00:14]} {[%emt 00:00:01]} 60.
Rg1 {[%clk 00:00:25]} {[%emt 00:00:01]} Rf7 {[%clk 00:00:15]} 61. Rg4 {[%clk
00:00:20]} {[%emt 00:00:06]} Kb7 {[%clk 00:00:17]} 62. c5 {[%clk 00:00:13]}
{[%emt 00:00:09]} Re7 {[%clk 00:00:06]} {[%emt 00:00:13]} 63. cxb6 {[%clk
00:00:13]} {[%emt 00:00:02]} axb6 {[%clk 00:00:07]} 64. Rh4 {[%clk 00:00:15]}
Ka6 {[%clk 00:00:08]} {[%emt 00:00:02]} 65. Rh6 {[%clk 00:00:15]} Re4+ {[%emt
00:00:01]} 66. Kb3 Ka5 {[%clk 00:00:11]} 67. Rh5+ {[%clk 00:00:18]} b5 {[%clk
00:00:12]} 68. Rh3 {[%clk 00:00:19]} Re1 {[%clk 00:00:12]} {[%emt 00:00:03]} 69.
Kb2 {[%clk 00:00:20]} {[%emt 00:00:01]} b4 {[%clk 00:00:13]} {[%emt 00:00:01]}
70. Rg3 {[%clk 00:00:20]} {[%emt 00:00:01]} Ka4 {[%clk 00:00:14]} {[%emt
00:00:01]} 71. Rh3 {[%clk 00:00:19]} {[%emt 00:00:03]} Re2+ {[%clk 00:00:15]}
{[%emt 00:00:01]} 72. Kb1 {[%clk 00:00:20]} {[%emt 00:00:01]} Rg2 {[%clk
00:00:15]} {[%emt 00:00:03]} 73. Ka1 {[%clk 00:00:20]} {[%emt 00:00:02]} Rd2
{[%clk 00:00:13]} {[%emt 00:00:04]} 74. Kb1 {[%clk 00:00:21]} Kb5 {[%clk
00:00:14]} {[%emt 00:00:01]} 75. Rh5+ {[%clk 00:00:21]} {[%emt 00:00:01]} Kc4
{[%clk 00:00:15]} {[%emt 00:00:01]} 76. Rh3 {[%clk 00:00:20]} {[%emt 00:00:03]}
Rd4 {[%clk 00:00:11]} {[%emt 00:00:06]} 77. Kb2 {[%clk 00:00:20]} {[%emt
00:00:02]} Rg4 {[%clk 00:00:11]} {[%emt 00:00:02]} 78. Rf3 {[%clk 00:00:21]}
{[%emt 00:00:01]} Rg2+ {[%clk 00:00:12]} {[%emt 00:00:01]} 79. Kb1 {[%clk
00:00:22]} Rd2 {[%clk 00:00:12]} {[%emt 00:00:01]} 80. Rh3 {[%clk 00:00:23]}
Kb5 {[%clk 00:00:12]} {[%emt 00:00:03]} 81. Kc1 {[%clk 00:00:24]} {[%emt
00:00:01]} Rd4 {[%clk 00:00:12]} {[%emt 00:00:01]} 82. Kb2 {[%clk 00:00:25]}
{[%emt 00:00:01]} Ka4 {[%clk 00:00:14]} 83. Rg3 {[%clk 00:00:26]} {[%emt
00:00:02]} Rd2+ {[%clk 00:00:15]} {[%emt 00:00:01]} 84. Kb1 {[%clk 00:00:26]}
{[%emt 00:00:01]} Rd7 {[%clk 00:00:14]} {[%emt 00:00:03]} 85. Kb2 {[%clk
00:00:28]} Rc7 {[%clk 00:00:14]} {[%emt 00:00:01]} 86. Rh3 {[%clk 00:00:28]}
{[%emt 00:00:01]} Rg7 {[%clk 00:00:15]} {[%emt 00:00:01]} 87. Rf3 {[%clk
00:00:29]} {[%emt 00:00:01]} Rg2+ {[%clk 00:00:16]} {[%emt 00:00:01]} 88. Kb1
{[%clk 00:00:30]} Rd2 {[%clk 00:00:16]} {[%emt 00:00:03]} 89. Rh3 {[%clk
00:00:31]} Kb5 {[%clk 00:00:16]} {[%emt 00:00:03]} 90. Rg3 {[%clk 00:00:31]}
{[%emt 00:00:02]} Kc4 {[%clk 00:00:17]} 91. Kc1 {[%clk 00:00:32]} Re2 {[%clk
00:00:14]} {[%emt 00:00:04]} 92. Rh3 {[%clk 00:00:33]} {[%emt 00:00:01]} Re4
{[%clk 00:00:13]} {[%emt 00:00:04]} 93. Kc2 {[%clk 00:00:34]} {[%emt 00:00:02]}
Rg4 {[%clk 00:00:11]} {[%emt 00:00:02]} 94. Kb2 {[%clk 00:00:33]} {[%emt
00:00:04]} Rg2+ {[%clk 00:00:12]} {[%emt 00:00:02]} 95. Kb1 {[%clk 00:00:33]}
{[%emt 00:00:01]} Kb5 {[%clk 00:00:11]} {[%emt 00:00:03]} 96. Rh5+ {[%clk
00:00:33]} {[%emt 00:00:02]} Ka4 {[%clk 00:00:12]} 97. Rh3 {[%clk 00:00:34]}
Rg5 {[%clk 00:00:13]} 98. Kb2 {[%clk 00:00:36]} Rc5 {[%clk 00:00:14]} {[%emt
00:00:03]} 99. Kb1 {[%clk 00:00:36]} Kb5 {[%clk 00:00:12]} {[%emt 00:00:04]}
100. Kb2 {[%clk 00:00:38]} {[%emt 00:00:01]} Rd5 {[%clk 00:00:13]} 101. Kb1
{[%clk 00:00:39]} Kc4 {[%clk 00:00:15]} {[%emt 00:00:02]} 102. Kb2 {[%clk
00:00:40]} Rd4 {[%clk 00:00:15]} {[%emt 00:00:01]} 103. Rg3 {[%clk 00:00:39]}
{[%emt 00:00:02]} Rd2+ {[%clk 00:00:16]} {[%emt 00:00:01]} 104. Kc1 {[%clk
00:00:40]} Ra2 {[%clk 00:00:17]} {[%emt 00:00:01]} 105. Kb1 {[%clk 00:00:41]}
Rd2 {[%clk 00:00:18]} {[%emt 00:00:01]} 106. Kc1 {[%clk 00:00:43]} {[%emt
00:00:01]} Rh2 {[%clk 00:00:18]} {[%emt 00:00:01]} 107. Kb1 {[%clk 00:00:44]}
Rh5 {[%clk 00:00:11]} {[%emt 00:00:09]} 108. Kb2 {[%clk 00:00:45]} {[%emt
00:00:01]} Re5 {[%clk 00:00:10]} {[%emt 00:00:03]} 109. Rh3 {[%clk 00:00:45]}
{[%emt 00:00:01]} Re2+ {[%clk 00:00:11]} {[%emt 00:00:01]} 110. Kb1 {[%clk
00:00:46]} Rd2 {[%clk 00:00:11]} {[%emt 00:00:02]} 111. Kc1 {[%clk 00:00:48]}
{[%emt 00:00:01]} Rd6 {[%clk 00:00:08]} {[%emt 00:00:05]} 112. Kb1 {[%clk
00:00:49]} {[%emt 00:00:01]} Rg6 {[%clk 00:00:05]} {[%emt 00:00:05]} 113. Kb2
{[%clk 00:00:49]} {[%emt 00:00:01]} Rg2+ {[%clk 00:00:06]} 114. Kb1 {[%clk
00:00:51]} Kb5 {[%clk 00:00:07]} 115. Rf3 {[%clk 00:00:51]} {[%emt 00:00:03]}
Rh2 {[%clk 00:00:08]} {[%emt 00:00:01]} 116. Rg3 {[%clk 00:00:52]} Rh4 {[%clk
00:00:08]} {[%emt 00:00:02]} 117. Rf3 {[%clk 00:00:53]} Rc4 {[%clk 00:00:09]}
118. Rh3 {[%clk 00:00:54]} {[%emt 00:00:02]} Ka4 {[%clk 00:00:10]} {[%emt
00:00:02]} 119. Kb2 {[%clk 00:00:55]} {[%emt 00:00:01]} Re4 {[%clk 00:00:10]}
{[%emt 00:00:02]} 120. Rg3 {[%clk 00:00:55]} {[%emt 00:00:01]} b3 {[%clk
00:00:09]} {[%emt 00:00:03]} 121. Rg8 {[%clk 00:00:53]} {[%emt 00:00:04]} Re2+
{[%clk 00:00:10]} {[%emt 00:00:01]} 122. Kb1 {[%clk 00:00:54]} Re4 {[%clk
00:00:05]} {[%emt 00:00:08]} 123. Ra8+ {[%clk 00:00:54]} {[%emt 00:00:02]} Kb4
{[%clk 00:00:06]} 124. Rb8+ {[%clk 00:00:54]} {[%emt 00:00:02]} Kc3 {[%clk
00:00:07]} {[%emt 00:00:01]} 125. Rc8+ {[%clk 00:00:55]} Rc4 {[%clk 00:00:08]}
{[%emt 00:00:01]} 126. Rxc4+ {[%clk 00:00:52]} {[%emt 00:00:05]} Kxc4 {[%clk
00:00:10]} 127. Kb2 {[%clk 00:00:53]} Kb4 {[%clk 00:00:11]} {[%emt 00:00:03]}
128. Kb1 {[%clk 00:00:54]} {[%emt 00:00:01]} Ka3 {[%clk 00:00:12]} 129. Ka1
{[%clk 00:00:55]} b2+ {[%clk 00:00:13]} 130. Kb1 Kb3 {[%emt 00:00:03]} 1/2-1/2

[Event "Campeonato de España Universitario Relámpago"]
[Site "Zaragoza, Spain"]
[Date "2024.04.24"]
[Round "9.2"]
[White "Fernandez Lopez, Ruben"]
[Black "Domingo Nunez, Alejandro"]
[Result "0-1"]
[TimeControl "3 min + 2 sg"]
[WhiteFideId "24518298"]
[BlackFideId "22245561"]
[WhiteElo "2262"]
[BlackElo "2252"]

1. e4 {[%clk 00:03:03]} {[%emt 00:02:51]} g6 {[%clk 00:03:04]} 2. d4 {[%clk
00:03:04]} {[%emt 00:00:01]} Bg7 {[%clk 00:03:05]} 3. Nc3 {[%clk 00:02:58]}
{[%emt 00:00:08]} c6 {[%clk 00:03:06]} 4. Nf3 {[%clk 00:02:58]} {[%emt
00:00:03]} d5 {[%clk 00:03:07]} 5. h3 {[%clk 00:02:57]} {[%emt 00:00:04]} dxe4
{[%clk 00:03:08]} 6. Nxe4 {[%clk 00:02:58]} Nf6 {[%clk 00:03:09]} {[%emt
00:00:01]} 7. Nxf6+ {[%clk 00:02:59]} exf6 {[%clk 00:03:10]} 8. Bc4 {[%clk
00:02:58]} {[%emt 00:00:03]} O-O {[%clk 00:03:11]} {[%emt 00:00:02]} 9. O-O
{[%clk 00:02:58]} {[%emt 00:00:02]} a5 {[%clk 00:03:12]} 10. a4 {[%clk
00:02:58]} {[%emt 00:00:03]} Na6 {[%clk 00:03:12]} 11. c3 {[%clk 00:02:57]}
{[%emt 00:00:03]} Nc7 {[%clk 00:03:12]} 12. Re1 {[%clk 00:02:55]} {[%emt
00:00:05]} Nd5 {[%clk 00:03:13]} 13. Bf1 {[%clk 00:02:52]} {[%emt 00:00:06]}
Be6 {[%clk 00:03:05]} {[%emt 00:00:10]} 14. Bd2 {[%clk 00:02:52]} {[%emt
00:00:03]} Qd6 {[%clk 00:02:58]} {[%emt 00:00:09]} 15. Qc1 {[%clk 00:02:34]}
{[%emt 00:00:21]} Rfe8 {[%clk 00:02:48]} {[%emt 00:00:12]} 16. Bh6 {[%clk
00:02:34]} {[%emt 00:00:02]} Bf5 {[%clk 00:01:54]} {[%emt 00:00:56]} 17. Bxg7
{[%clk 00:02:34]} {[%emt 00:00:02]} Kxg7 {[%clk 00:01:55]} 18. Nd2 {[%clk
00:02:29]} {[%emt 00:00:07]} Qc7 {[%clk 00:01:41]} {[%emt 00:00:15]} 19. Nc4
{[%clk 00:02:29]} {[%emt 00:00:03]} Be6 {[%clk 00:01:01]} {[%emt 00:00:42]} 20.
Ne3 {[%clk 00:02:26]} {[%emt 00:00:05]} Nf4 {[%clk 00:00:54]} {[%emt 00:00:09]}
21. Qd2 {[%clk 00:02:25]} {[%emt 00:00:03]} Rad8 {[%clk 00:00:54]} {[%emt
00:00:02]} 22. Qc2 {[%clk 00:02:12]} {[%emt 00:00:15]} Re7 {[%clk 00:00:41]}
{[%emt 00:00:16]} 23. Rad1 {[%clk 00:02:09]} {[%emt 00:00:05]} Red7 {[%clk
00:00:31]} {[%emt 00:00:12]} 24. Bc4 {[%clk 00:01:48]} {[%emt 00:00:23]} Bxc4
{[%clk 00:00:29]} {[%emt 00:00:04]} 25. Nxc4 {[%clk 00:01:49]} c5 {[%clk
00:00:30]} {[%emt 00:00:01]} 26. dxc5 {[%clk 00:01:44]} {[%emt 00:00:06]} Qxc5
{[%clk 00:00:19]} {[%emt 00:00:14]} 27. Ne3 {[%clk 00:01:45]} Nd3 {[%clk
00:00:14]} {[%emt 00:00:07]} 28. Rf1 {[%clk 00:01:45]} {[%emt 00:00:01]} Qc6
{[%clk 00:00:11]} {[%emt 00:00:06]} 29. b3 {[%clk 00:01:12]} {[%emt 00:00:35]}
Nc5 {[%clk 00:00:08]} {[%emt 00:00:05]} 30. c4 {[%clk 00:01:09]} {[%emt
00:00:05]} Na6 {[%clk 00:00:06]} {[%emt 00:00:04]} 31. Nd5 {[%clk 00:01:05]}
{[%emt 00:00:06]} Rxd5 {[%clk 00:00:05]} {[%emt 00:00:03]} 32. Rde1 {[%clk
00:00:57]} {[%emt 00:00:10]} Rd3 {[%clk 00:00:06]} {[%emt 00:00:01]} 33. h4
{[%clk 00:00:53]} {[%emt 00:00:05]} h5 {[%clk 00:00:07]} 34. Re7 {[%clk
00:00:52]} {[%emt 00:00:03]} R8d7 {[%clk 00:00:09]} {[%emt 00:00:01]} 35. Re8
{[%clk 00:00:52]} {[%emt 00:00:01]} Nb4 {[%clk 00:00:09]} {[%emt 00:00:02]} 36.
Qe2 {[%clk 00:00:53]} {[%emt 00:00:02]} Rxb3 {[%clk 00:00:05]} {[%emt
00:00:06]} 37. Rb8 {[%clk 00:00:50]} {[%emt 00:00:03]} Rc7 {[%clk 00:00:05]}
{[%emt 00:00:03]} 38. Qd1 {[%clk 00:00:29]} {[%emt 00:00:23]} Rd3 {[%clk
00:00:07]} 39. Qe1 {[%clk 00:00:27]} {[%emt 00:00:03]} Rc8 {[%clk 00:00:08]}
{[%emt 00:00:01]} 40. Rxc8 {[%clk 00:00:28]} Qxc8 {[%clk 00:00:09]} 41. Qe7
{[%clk 00:00:29]} 0-1

[Event "Campeonato de España Universitario Relámpago"]
[Site "Zaragoza, Spain"]
[Date "2024.04.24"]
[Round "9.3"]
[White "Cesar Maestre, Bernardo"]
[Black "Lianes Garcia, Marcos"]
[Result "0-1"]
[TimeControl "3 min + 2 sg"]
[WhiteFideId "24542547"]
[BlackFideId "32060777"]
[WhiteElo "2251"]
[BlackElo "2382"]

1. e4 {[%clk 00:03:02]} {[%emt 00:00:01]} g6 {[%clk 00:03:04]} 2. d4 {[%emt
00:00:05]} Bg7 3. Nf3 {[%clk 00:02:57]} {[%emt 00:00:04]} c5 {[%clk 00:03:07]}
4. dxc5 {[%clk 00:02:58]} {[%emt 00:00:02]} Qa5+ {[%clk 00:03:09]} 5. c3 {[%clk
00:02:53]} {[%emt 00:00:07]} Qxc5 {[%clk 00:03:10]} 6. Be3 {[%clk 00:02:52]}
{[%emt 00:00:02]} Qa5 {[%clk 00:03:11]} 7. Nbd2 {[%clk 00:02:53]} {[%emt
00:00:02]} Nc6 {[%clk 00:03:13]} 8. Bc4 {[%clk 00:02:45]} {[%emt 00:00:11]} Nf6
{[%clk 00:03:12]} {[%emt 00:00:03]} 9. h3 {[%clk 00:02:33]} {[%emt 00:00:14]}
O-O {[%clk 00:03:12]} {[%emt 00:00:02]} 10. O-O {[%clk 00:02:33]} {[%emt
00:00:01]} d6 {[%clk 00:02:46]} {[%emt 00:00:28]} 11. Qe2 {[%clk 00:02:32]}
{[%emt 00:00:04]} a6 {[%clk 00:02:47]} {[%emt 00:00:01]} 12. a4 {[%clk
00:02:32]} {[%emt 00:00:01]} Bd7 {[%clk 00:02:42]} {[%emt 00:00:07]} 13. Bb3
{[%clk 00:02:08]} {[%emt 00:00:26]} Qc7 {[%clk 00:02:35]} {[%emt 00:00:09]} 14.
Nc4 {[%clk 00:02:06]} {[%emt 00:00:04]} b5 {[%clk 00:02:09]} {[%emt 00:00:28]}
15. Nb6 {[%clk 00:02:07]} {[%emt 00:00:01]} Rab8 {[%clk 00:02:10]} {[%emt
00:00:01]} 16. axb5 {[%clk 00:02:05]} {[%emt 00:00:03]} axb5 {[%clk 00:02:10]}
{[%emt 00:00:02]} 17. Nd5 {[%clk 00:02:04]} {[%emt 00:00:03]} Nxd5 {[%clk
00:02:08]} {[%emt 00:00:05]} 18. exd5 {[%clk 00:01:56]} {[%emt 00:00:10]} Na5
{[%clk 00:02:07]} {[%emt 00:00:03]} 19. Bc2 {[%clk 00:01:40]} {[%emt 00:00:17]}
b4 {[%clk 00:02:01]} {[%emt 00:00:08]} 20. cxb4 {[%clk 00:01:03]} {[%emt
00:00:39]} Rxb4 {[%clk 00:01:49]} {[%emt 00:00:14]} 21. Rfb1 {[%clk 00:00:52]}
{[%emt 00:00:13]} Nc4 {[%clk 00:01:05]} {[%emt 00:00:46]} 22. Ra7 {[%clk
00:00:49]} {[%emt 00:00:05]} Qd8 {[%clk 00:00:52]} {[%emt 00:00:15]} 23. Bg5
{[%clk 00:00:40]} {[%emt 00:00:11]} Re8 {[%clk 00:00:45]} {[%emt 00:00:09]} 24.
b3 {[%clk 00:00:41]} Ne5 {[%clk 00:00:41]} {[%emt 00:00:06]} 25. Nd2 {[%clk
00:00:26]} {[%emt 00:00:16]} Bb5 {[%clk 00:00:27]} {[%emt 00:00:17]} 26. Qe3
{[%clk 00:00:21]} {[%emt 00:00:07]} Nd7 {[%clk 00:00:22]} {[%emt 00:00:08]} 27.
Ne4 {[%clk 00:00:15]} {[%emt 00:00:08]} Bd4 {[%clk 00:00:14]} {[%emt 00:00:09]}
28. Qg3 {[%clk 00:00:11]} {[%emt 00:00:05]} Bxa7 {[%clk 00:00:13]} {[%emt
00:00:04]} 29. Nxd6 {[%clk 00:00:08]} {[%emt 00:00:06]} Bb8 {[%clk 00:00:12]}
{[%emt 00:00:03]} 0-1